bitfinex/quotes_BTCUSD_20251113
["timestamp","ask_amount","ask_price","bid_price","bid_amount"]
[1763045294172,0.32395168,101990.0,101970.0,0.19613611]
[1763045294381,0.11724949,101990.0,101980.0,0.19611688]
[1763045294585,0.09816915,101990.0,101980.0,0.19611688]
[1763045294794,0.14148915,101990.0,101980.0,0.19611688]
[1763045295020,0.3375868,101990.0,101970.0,0.23634223]
[1763045295411,0.82971812,101990.0,101970.0,0.23634223]
[1763045295618,0.001,101990.0,101980.0,0.19611688]
[1763045295847,0.24041765,101990.0,101980.0,0.23936279]
[1763045296393,0.77207897,101990.0,101980.0,0.04324591]
[1763045296593,0.77107897,101990.0,101980.0,0.04324591]
[1763045296790,0.19611688,101980.0,101970.0,0.23634223]
[1763045296951,0.21497765,101990.0,101970.0,0.23634223]
[1763045297165,0.23943688,101980.0,101970.0,0.04020612]
[1763045298067,0.27996688,101980.0,101970.0,0.04120612]
[1763045298275,0.23943688,101980.0,101970.0,0.04120612]
[1763045298885,0.23943688,101980.0,101970.0,0.23734223]
[1763045299242,0.04332,101980.0,101970.0,0.23734223]
[1763045299408,0.3131468,101990.0,101980.0,0.19611688]
[1763045299613,0.84683438,101990.0,101980.0,0.04324591]
[1763045300024,0.19611688,101980.0,101970.0,0.23634223]
[1763045300285,0.19611688,101980.0,101970.0,0.04020612]
[1763045300736,0.01811659,101980.0,101970.0,0.19613611]
[1763045300980,0.78739812,101990.0,101980.0,0.19611688]
[1763045301198,0.00024805,102000.0,101990.0,0.51909765]
[1763045301410,0.000388,102000.0,101990.0,1.06112168]
[1763045301648,0.000388,102000.0,101990.0,1.19265979]
[1763045302318,0.23978643,102000.0,101990.0,0.09639948]
[1763045302546,0.19609765,101990.0,101980.0,0.22246899]
[1763045302781,0.19609765,101990.0,101980.0,0.19611502]
[1763045303038,0.19709765,101990.0,101980.0,0.20311688]
[1763045303275,0.001,101990.0,101980.0,0.75457091]
[1763045303498,0.000388,102000.0,101990.0,0.51909765]
[1763045303918,0.000388,102000.0,101990.0,0.323]
[1763045304127,0.000388,102000.0,101990.0,0.99134897]
[1763045304398,0.000388,102000.0,101990.0,1.13958031]
[1763045304652,0.000388,102000.0,101990.0,1.23077986]
[1763045304859,0.000388,102000.0,101990.0,0.7151098]
[1763045305060,0.000388,102000.0,101990.0,1.18736112]
[1763045305261,0.000388,102000.0,101990.0,1.18936112]
[1763045306240,0.000388,102000.0,101990.0,1.23577986]
[1763045306527,0.000388,102000.0,101990.0,0.73717457]
[1763045306768,0.68720287,102050.0,102030.0,0.19600171]
[1763045306769,0.19598348,102050.0,102030.0,0.19600171]
[1763045307007,0.21429001,102050.0,102030.0,0.21658208]
[1763045307279,0.19600156,102040.0,102030.0,0.02058037]
[1763045307487,0.01816642,102040.0,102030.0,0.21660114]
[1763045307719,0.01816642,102040.0,102030.0,0.02058037]
[1763045307720,0.25744798,102040.0,102030.0,0.02058037]
[1763045307924,0.25744798,102040.0,102030.0,0.21660114]
[1763045307925,0.01816642,102040.0,102030.0,0.21660114]
[1763045308162,0.25928383,102050.0,102040.0,0.19600156]
[1763045308377,0.25957136,102050.0,102040.0,0.23726183]
[1763045308560,0.062589,102050.0,102040.0,0.23726183]
[1763045308769,0.25857136,102050.0,102040.0,0.23726183]
[1763045308976,0.062589,102050.0,102040.0,0.23726183]
[1763045309130,0.018309,102050.0,102040.0,0.23726183]
[1763045309347,0.061589,102050.0,102040.0,0.23726183]
[1763045309521,0.018309,102050.0,102040.0,1.03251315]
[1763045309735,0.04328,102080.0,102070.0,0.19593556]
[1763045309939,0.04328,102080.0,102070.0,1.01078044]
[1763045309940,0.01817202,102080.0,102070.0,1.01078044]
[1763045310319,0.0002,102090.0,102080.0,0.51892476]
[1763045310527,0.19592476,102080.0,102070.0,0.04586147]
[1763045310730,0.01815865,102080.0,102070.0,0.53853668]
[1763045310933,0.00066684,102090.0,102080.0,0.19592476]
[1763045311151,0.00066684,102090.0,102080.0,0.29232424]
[1763045311362,0.00066684,102090.0,102080.0,1.08757556]
[1763045312021,0.00066684,102090.0,102080.0,0.41939948]
[1763045312229,0.19657241,102090.0,102080.0,0.41939948]
[1763045312435,0.77103112,102090.0,102080.0,0.09639948]
[1763045312635,0.19592476,102080.0,102070.0,0.01959356]
[1763045312766,0.21404215,102080.0,102070.0,0.01959356]
[1763045313387,0.01811739,102080.0,102070.0,0.21553752]
[1763045313594,0.04328,102080.0,102070.0,0.21553752]
[1763045313795,0.00198256,102080.0,102070.0,0.21553752]
[1763045314047,0.04526256,102080.0,102070.0,0.21553752]
[1763045314273,0.04626256,102080.0,102070.0,0.21553752]
[1763045314476,0.19890732,102080.0,102070.0,0.21553752]
[1763045314630,0.00298256,102080.0,102070.0,0.21553752]
[1763045314831,0.19890732,102080.0,102070.0,0.21553752]
[1763045315029,0.00298256,102080.0,102070.0,0.21553752]
[1763045315455,0.00198256,102080.0,102070.0,0.21553752]
[1763045315671,0.00198256,102080.0,102070.0,0.68778884]
[1763045315844,0.00298256,102080.0,102070.0,0.73120758]
[1763045316244,0.00198256,102080.0,102070.0,0.25895626]
[1763045316471,0.00198256,102080.0,102070.0,0.73120758]
[1763045316834,0.00198256,102080.0,102070.0,1.05420758]
[1763045317139,0.00198256,102080.0,102070.0,0.60822417]
[1763045317351,0.00198256,102080.0,102070.0,1.08347549]
[1763045317559,0.00198256,102080.0,102070.0,1.08547549]
[1763045317971,0.00198256,102080.0,102070.0,1.05720758]
[1763045318173,0.00198256,102080.0,102070.0,1.06120758]
[1763045318596,0.19837836,102100.0,102090.0,0.19590557]
[1763045318800,0.18872404,102100.0,102090.0,0.21549613]
[1763045319008,0.18872404,102100.0,102090.0,0.01959056]
[1763045319217,0.19602637,102100.0,102090.0,0.19590557]
[1763045319453,0.24910068,102100.0,102070.0,0.27775345]
[1763045319664,0.01937,102080.0,102070.0,0.02359356]
[1763045319906,0.19598236,102050.0,102040.0,0.02626791]
[1763045320072,0.19602077,102030.0,102000.0,0.24916035]
[1763045320272,0.04328,102030.0,102010.0,0.19605744]
[1763045320471,0.04328,102030.0,102020.0,0.19603999]
[1763045320834,0.04328,102030.0,102010.0,0.19605744]
[1763045321073,0.23930077,102030.0,102010.0,0.19652428]
[1763045321272,0.04328,102030.0,102020.0,0.19603999]
[1763045321720,0.04428,102030.0,102020.0,0.19603999]
[1763045321887,0.01937,102050.0,102030.0,0.19602077]
[1763045322093,0.14140915,102060.0,102040.0,0.19600156]
[1763045322289,0.14140915,102060.0,102050.0,0.19598236]
[1763045322563,0.04324,102060.0,102050.0,0.19598236]
[1763045322697,0.26595742,102080.0,102060.0,0.19596315]
[1763045322910,0.28400988,102080.0,102060.0,0.19596315]
[1763045323111,0.23922396,102070.0,102060.0,0.19596315]
[1763045323288,0.77034317,102070.0,102060.0,0.04017446]
[1763045323481,0.77034317,102070.0,102060.0,0.00046684]
[1763045323707,0.29809185,102070.0,102060.0,0.19642999]
[1763045323904,0.25728185,102070.0,102060.0,0.19642999]
[1763045324086,0.23922396,102070.0,102060.0,0.19642999]
[1763045324464,0.77035618,102070.0,102060.0,0.00046684]
[1763045324612,0.77235618,102070.0,102060.0,0.00046684]
[1763045324820,0.77035618,102070.0,102060.0,0.00046684]
[1763045324998,0.21401486,102070.0,102060.0,0.19642999]
[1763045325186,0.26029486,102070.0,102060.0,0.2356712]
[1763045325390,0.26229486,102070.0,102060.0,0.03970805]
[1763045325613,0.32912486,102070.0,102060.0,0.03970805]
[1763045325819,0.32912486,102070.0,102060.0,0.00046684]
[1763045326014,0.69244896,102070.0,102060.0,0.00046684]
[1763045326223,0.19600549,102040.0,102030.0,0.19602077]
[1763045326423,0.23924156,102040.0,102030.0,0.19616088]
[1763045326633,0.04324,102040.0,102030.0,0.19616088]
[1763045326840,0.04324,102040.0,102030.0,0.23636117]
[1763045327209,0.20579323,102060.0,102040.0,0.19600156]
[1763045327410,0.23922236,102050.0,102040.0,0.19600156]
[1763045327864,0.25731495,102050.0,102040.0,0.19600156]
[1763045328245,0.01809259,102050.0,102040.0,0.19600156]
[1763045328447,0.04324,102050.0,102040.0,0.24021794]
[1763045329029,0.20574175,102070.0,102050.0,0.19598236]
[1763045329231,0.04324,102060.0,102050.0,0.19598236]
[1763045329460,0.25730952,102060.0,102050.0,0.19598236]
[1763045329681,0.25730952,102060.0,102050.0,0.23960239]
[1763045329883,0.06134637,102060.0,102050.0,0.23960239]
[1763045330505,0.06134637,102060.0,102050.0,0.56260239]
[1763045330506,0.01810637,102060.0,102050.0,0.56260239]
[1763045330717,0.002,102070.0,102060.0,0.51896315]
[1763045331051,0.002,102070.0,102060.0,0.92243633]
[1763045331251,0.002,102070.0,102060.0,1.01076204]
[1763045331451,0.23939327,102090.0,102080.0,0.19592476]
[1763045331661,0.01839402,102090.0,102080.0,0.19592476]
[1763045332468,0.21429959,102090.0,102080.0,0.19592476]
[1763045332794,0.19737241,102090.0,102080.0,0.19592476]
[1763045332937,0.19737241,102090.0,102080.0,0.2351099]
[1763045333145,0.00046684,102090.0,102080.0,0.2351099]
[1763045334167,0.00146684,102090.0,102080.0,0.2351099]
[1763045334765,0.19737241,102090.0,102080.0,0.2351099]
[1763045335334,0.26420241,102090.0,102080.0,0.03918514]
[1763045335538,0.19737241,102090.0,102070.0,0.51893962]
[1763045335794,0.19737241,102090.0,102080.0,0.19592476]
[1763045335994,0.00146684,102090.0,102080.0,0.19592476]
[1763045336515,0.00046684,102090.0,102080.0,0.51892476]
[1763045336741,0.00046684,102090.0,102080.0,0.62960934]
[1763045337590,0.00146684,102090.0,102080.0,0.62960934]
[1763045338670,0.00146684,102090.0,102080.0,1.0681064]
[1763045338831,0.04324,102110.0,102100.0,0.19588638]
[1763045339028,0.04324,102110.0,102100.0,0.23506384]
[1763045339029,0.23924722,102110.0,102100.0,0.23506384]
[1763045339233,0.00014002,102110.0,102100.0,0.23506384]
[1763045339448,0.00014002,102110.0,102100.0,0.96153702]
[1763045339692,0.00014002,102110.0,102100.0,0.58433175]
[1763045340236,0.01971002,102110.0,102100.0,0.06544537]
[1763045340434,0.02071002,102110.0,102100.0,0.23506384]
[1763045340638,0.20586984,102150.0,102100.0,0.23506384]
[1763045340639,0.03514956,102190.0,102160.0,0.00978856]
[1763045340844,0.56115038,102260.0,102200.0,0.54869468]
[1763045340845,0.05229082,102230.0,102200.0,0.54869468]
[1763045341047,0.00908779,102230.0,102220.0,0.75010321]
[1763045341266,0.02003733,102230.0,102220.0,0.04726454]
[1763045341473,0.25648956,102230.0,102220.0,0.01821733]
[1763045341695,0.06084733,102230.0,102220.0,0.01821733]
[1763045342041,0.00046733,102230.0,102220.0,0.23479738]
[1763045342250,0.00046733,102230.0,102220.0,0.63827056]
[1763045342423,0.00171739,102230.0,102220.0,0.74793291]
[1763045342660,0.00171739,102230.0,102220.0,0.73847155]
[1763045342861,0.0438,102260.0,102250.0,0.19559902]
[1763045343068,8e-05,102270.0,102260.0,0.19557989]
[1763045343254,0.00022014,102270.0,102260.0,0.02092363]
[1763045343473,0.00022014,102270.0,102260.0,0.19557989]
[1763045343610,0.04406014,102270.0,102260.0,0.19557989]
[1763045343813,0.04406014,102270.0,102250.0,0.40347318]
[1763045344013,0.04406014,102270.0,102250.0,0.21638869]
[1763045344222,0.00022014,102270.0,102260.0,0.59905307]
[1763045344423,0.00322014,102270.0,102260.0,0.96547181]
[1763045344628,0.00322014,102270.0,102260.0,0.98620552]
[1763045344857,0.00322014,102270.0,102260.0,1.03065214]
[1763045345067,0.00322014,102270.0,102260.0,1.63025579]
[1763045345290,0.19540837,102350.0,102310.0,0.19546837]
[1763045345446,0.19542826,102340.0,102300.0,0.79820513]
[1763045345648,0.04392,102340.0,102330.0,0.27970198]
[1763045345848,0.04206437,102340.0,102330.0,0.47514808]
[1763045346047,0.00046666,102350.0,102340.0,0.195427]
[1763045346453,0.00546666,102350.0,102340.0,0.47512898]
[1763045346710,0.00546666,102350.0,102330.0,0.1954461]
[1763045346836,0.001,102340.0,102330.0,0.5184461]
[1763045347234,0.195427,102340.0,102310.0,0.01624885]
[1763045347449,0.19544656,102330.0,102310.0,0.19548159]
[1763045347664,0.19544744,102330.0,102310.0,0.19548159]
[1763045347871,0.33773713,102340.0,102320.0,0.1954652]
[1763045348083,0.2393272,102330.0,102310.0,0.19548159]
[1763045348297,0.04388,102330.0,102320.0,0.1954652]
[1763045348505,0.21065583,102350.0,102320.0,0.323]
[1763045348719,0.19542772,102340.0,102330.0,0.1954461]
[1763045348907,0.00046666,102350.0,102340.0,0.195427]
[1763045349159,0.00046666,102350.0,102340.0,0.518427]
[1763045350005,0.00046666,102350.0,102340.0,0.323]
[1763045350226,0.19542822,102340.0,102310.0,0.2052558]
[1763045350432,0.19544753,102330.0,102300.0,0.26532449]
[1763045350642,0.23932711,102330.0,102310.0,0.19548291]
[1763045350852,0.23932996,102330.0,102310.0,0.19548291]
[1763045351283,0.1954652,102320.0,102300.0,0.20527823]
[1763045351485,0.2393651,102310.0,102290.0,0.1955223]
[1763045351617,0.04388,102310.0,102300.0,0.19550342]
[1763045352024,0.23936431,102310.0,102300.0,0.19550342]
[1763045352227,0.04388,102310.0,102300.0,0.19550342]
[1763045352424,0.20519957,102340.0,102320.0,0.1954652]
[1763045352633,0.00046638,102340.0,102330.0,0.1954461]
[1763045352831,0.00046638,102340.0,102330.0,0.23551456]
[1763045353255,0.19589338,102340.0,102330.0,0.04006846]
[1763045353459,0.19545027,102330.0,102310.0,0.20525152]
[1763045353656,0.04384,102330.0,102310.0,0.20525152]
[1763045353866,0.00046638,102340.0,102330.0,0.5184461]
[1763045354069,0.00046638,102340.0,102330.0,0.96322979]
[1763045354271,0.00046638,102340.0,102330.0,0.56186484]
[1763045354539,1e-08,102340.0,102330.0,0.59468494]
[1763045354746,1e-08,102340.0,102330.0,0.99604989]
[1763045354953,0.0002,102380.0,102370.0,0.51836973]
[1763045355272,0.0003399,102380.0,102370.0,0.56178847]
[1763045355524,0.0003399,102380.0,102370.0,0.98147841]
[1763045355819,0.0003399,102380.0,102370.0,1.01429851]
[1763045356160,0.00028,102410.0,102400.0,0.56173124]
[1763045356394,0.00028,102410.0,102400.0,0.96309619]
[1763045356594,0.00790119,102410.0,102400.0,0.98130462]
[1763045356795,0.00019993,102430.0,102420.0,0.04341874]
[1763045357052,0.00019993,102430.0,102400.0,0.21352049]
[1763045357053,0.01010246,102430.0,102400.0,0.21352049]
[1763045357284,0.19559499,102430.0,102400.0,0.53652049]
[1763045357488,0.19529342,102410.0,102380.0,0.00976753]
[1763045357629,0.19529342,102410.0,102390.0,0.04341874]
[1763045357848,0.19529342,102410.0,102390.0,0.323]
[1763045357849,0.19529871,102410.0,102390.0,0.323]
[1763045358021,0.19530116,102410.0,102390.0,0.323]
[1763045358220,0.1953125,102400.0,102390.0,0.323]
[1763045358427,0.19535093,102380.0,102360.0,0.04384]
[1763045358622,0.19534969,102390.0,102370.0,0.19536681]
[1763045358823,0.19534969,102390.0,102380.0,0.323]
[1763045358824,0.19533507,102390.0,102380.0,0.323]
[1763045359246,0.19533507,102390.0,102380.0,0.3553]
[1763045359725,0.19533507,102390.0,102380.0,0.0323]
[1763045359893,0.19535065,102380.0,102370.0,0.003]
[1763045360158,0.23919065,102380.0,102370.0,0.003]
[1763045360321,0.6405556,102380.0,102370.0,0.003]
[1763045360554,0.29131065,102380.0,102370.0,0.003]
[1763045360756,0.6926756,102380.0,102370.0,0.003]
[1763045360958,0.29131065,102380.0,102370.0,0.003]
[1763045361125,0.6926756,102380.0,102370.0,0.003]
[1763045361334,0.195427,102340.0,102330.0,0.01722035]
[1763045361535,0.195427,102340.0,102330.0,0.0001399]
[1763045361758,0.23922102,102350.0,102330.0,0.19558503]
[1763045361900,0.20519292,102360.0,102340.0,0.195427]
[1763045362103,0.23920791,102350.0,102340.0,0.0391012]
[1763045362303,0.19540124,102370.0,102350.0,0.19540791]
[1763045362528,0.19535065,102380.0,102360.0,0.51838882]
[1763045362764,0.24015065,102380.0,102370.0,0.323]
[1763045363003,0.19535065,102380.0,102370.0,0.37483854]
[1763045363205,0.19539767,102360.0,102340.0,0.30622907]
[1763045363446,0.0438,102360.0,102350.0,0.51840791]
[1763045363657,0.23918882,102360.0,102350.0,0.323]
[1763045363945,0.23918882,102360.0,102350.0,0.51854781]
[1763045364162,0.23918882,102360.0,102350.0,0.3231399]
[1763045364373,0.0438,102360.0,102350.0,0.57529176]
[1763045364583,0.19536973,102370.0,102360.0,0.19538882]
[1763045364804,0.19538882,102360.0,102350.0,0.3231399]
[1763045365005,0.64887377,102360.0,102350.0,0.0001399]
[1763045366449,0.15413198,102360.0,102350.0,0.0001399]
[1763045366654,0.19789198,102360.0,102350.0,0.0001399]
[1763045366834,0.19536973,102370.0,102360.0,0.19538882]
[1763045367036,0.24016973,102370.0,102360.0,0.36209366]
[1763045367311,0.69365468,102370.0,102360.0,0.03909366]
[1763045367426,0.19538882,102360.0,102350.0,0.0001399]
[1763045367629,0.19538882,102360.0,102350.0,0.19554781]
[1763045367862,0.19638882,102360.0,102350.0,0.19554781]
[1763045368067,0.19538882,102360.0,102350.0,0.0001399]
[1763045368273,0.59675377,102360.0,102350.0,0.0001399]
[1763045368701,0.24750882,102360.0,102350.0,0.0001399]
[1763045368909,0.19738882,102360.0,102350.0,0.0001399]
[1763045369247,0.19838882,102360.0,102350.0,0.0001399]
[1763045369453,0.65187377,102360.0,102350.0,0.0001399]
[1763045371052,0.97487377,102360.0,102350.0,0.0001399]
[1763045372178,1.01829251,102360.0,102350.0,0.0001399]
[1763045372741,0.97487377,102360.0,102350.0,0.0001399]
[1763045372961,0.25050882,102360.0,102350.0,0.0001399]
[1763045373358,0.69559377,102360.0,102350.0,0.0001399]
[1763045373579,0.25050882,102360.0,102350.0,0.02104402]
[1763045373822,0.28841882,102360.0,102350.0,0.02104402]
[1763045374045,0.68978377,102360.0,102350.0,0.04876669]
[1763045374290,0.19540791,102350.0,102340.0,0.02599656]
[1763045374577,0.195427,102340.0,102330.0,0.02838106]
[1763045374857,0.25732847,102340.0,102330.0,0.02838106]
[1763045375137,0.239147,102340.0,102330.0,0.06314395]
[1763045375386,0.239147,102340.0,102330.0,0.09425837]
[1763045375875,0.2208175,102350.0,102340.0,0.195427]
[1763045376131,0.2208175,102350.0,102340.0,0.2563717]
[1763045376132,0.04385959,102350.0,102340.0,0.2563717]
[1763045376371,0.2392675,102350.0,102340.0,0.2563717]
[1763045376633,0.71321245,102350.0,102340.0,0.0609447]
[1763045376853,0.71321245,102350.0,102330.0,0.28147735]
[1763045376854,0.195427,102340.0,102330.0,0.0633292]
[1763045377064,0.195427,102340.0,102330.0,0.02856631]
[1763045377065,0.8203608,102340.0,102330.0,0.02856631]
[1763045377530,0.1954461,102330.0,102320.0,0.02618181]
[1763045377699,0.1954652,102320.0,102310.0,0.02618181]
[1763045377910,0.19548431,102310.0,102300.0,0.0609447]
[1763045378119,0.60965167,102310.0,102300.0,0.02618181]
[1763045378292,0.19550342,102300.0,102290.0,0.10709985]
[1763045378502,0.47521986,102300.0,102290.0,0.10709985]
[1763045378849,0.19550342,102300.0,102290.0,0.10709985]
[1763045379128,0.19550342,102300.0,102290.0,0.10756623]
[1763045379271,0.19550342,102300.0,102290.0,0.07280334]
[1763045379473,0.8022463,102300.0,102290.0,0.07280334]
[1763045379672,0.8022463,102300.0,102290.0,0.02664819]
[1763045380022,0.8022463,102300.0,102290.0,0.00046638]
[1763045380677,0.22075438,102310.0,102290.0,0.00046638]
[1763045380881,0.23918342,102300.0,102290.0,0.22317072]
[1763045381089,0.23918342,102300.0,102290.0,0.26851819]
[1763045381288,0.23918342,102300.0,102290.0,0.07199566]
[1763045381495,0.23918342,102300.0,102290.0,0.24133638]
[1763045381701,0.04368,102300.0,102290.0,0.24133638]
[1763045382628,0.23918342,102300.0,102290.0,0.04681385]
[1763045382889,0.56620986,102300.0,102290.0,0.04681385]
[1763045383297,0.56620986,102300.0,102290.0,0.00146638]
[1763045383500,0.8459263,102300.0,102290.0,0.00146638]
[1763045383692,0.8459263,102300.0,102290.0,0.00245411]
[1763045384005,0.56620986,102300.0,102290.0,0.00245411]
[1763045384550,0.51889986,102300.0,102290.0,0.19797664]
[1763045384756,0.56620986,102300.0,102290.0,0.07672385]
[1763045384997,0.56620986,102300.0,102290.0,0.00245411]
[1763045386449,0.8459263,102300.0,102290.0,0.02335187]
[1763045386682,0.8459263,102300.0,102290.0,0.00245411]
[1763045387222,0.86406775,102300.0,102290.0,0.00245411]
[1763045387692,0.19548438,102310.0,102290.0,0.00245411]
[1763045387919,0.19548438,102310.0,102290.0,0.00146638]
[1763045387920,0.23914342,102300.0,102290.0,0.00146638]
[1763045388130,0.51885986,102300.0,102290.0,0.00146638]
[1763045388335,0.51885986,102300.0,102290.0,0.00046638]
[1763045388539,0.51885986,102300.0,102290.0,0.04758421]
[1763045388951,0.23914342,102300.0,102290.0,0.06016079]
[1763045389171,0.19550148,102310.0,102290.0,0.04758421]
[1763045389374,0.23054179,102320.0,102300.0,0.02616914]
[1763045389581,0.0436,102310.0,102300.0,0.04710516]
[1763045389790,0.09091,102310.0,102300.0,0.04710516]
[1763045390232,0.09191,102310.0,102300.0,0.04710516]
[1763045390465,0.09291,102310.0,102300.0,0.3244065]
[1763045390680,0.002,102310.0,102300.0,0.67740647]
[1763045390883,0.0476,102310.0,102300.0,0.69517941]
[1763045391083,0.0476,102310.0,102300.0,0.37217941]
[1763045391408,0.0476,102310.0,102300.0,0.17667599]
[1763045391614,0.2643352,102320.0,102310.0,0.04341874]
[1763045391819,0.2643352,102320.0,102310.0,0.12127905]
[1763045392039,0.06887,102320.0,102310.0,0.12127905]
[1763045392778,0.06887,102320.0,102310.0,0.14127903]
[1763045393210,0.2643352,102320.0,102310.0,0.12127905]
[1763045393453,0.06887,102320.0,102310.0,0.14127903]
[1763045393659,0.55346845,102340.0,102310.0,0.32950228]
[1763045393864,0.0436,102330.0,102320.0,0.27382302]
[1763045394071,0.0436,102330.0,102320.0,0.37528903]
[1763045394321,0.0436,102330.0,102320.0,0.32034997]
[1763045394528,0.0436,102330.0,102320.0,0.35034994]
[1763045394737,0.2680081,102340.0,102330.0,0.23886484]
[1763045394738,0.002,102340.0,102330.0,0.23886484]
[1763045394947,0.002,102340.0,102330.0,0.33131003]
[1763045395160,0.06883,102350.0,102330.0,0.36130921]
[1763045395366,0.31154943,102350.0,102340.0,0.07836564]
[1763045395578,0.31154943,102350.0,102340.0,0.12548325]
[1763045395579,0.06883,102350.0,102340.0,0.12548325]
[1763045395785,0.26423791,102350.0,102340.0,0.12548325]
[1763045395988,0.2643775,102350.0,102340.0,0.12548325]
[1763045396364,0.2673775,102350.0,102340.0,0.12548325]
[1763045396570,0.3146875,102350.0,102340.0,0.12548325]
[1763045396886,0.3473975,102350.0,102340.0,0.12548325]
[1763045397099,0.3503975,102350.0,102340.0,0.05588292]
[1763045397307,0.3503975,102350.0,102340.0,0.02093602]
[1763045397493,0.6733975,102350.0,102340.0,0.05588292]
[1763045397705,0.6733975,102350.0,102340.0,0.04716967]
[1763045397881,0.6703975,102350.0,102340.0,0.05588292]
[1763045398067,0.6733975,102350.0,102340.0,0.05588292]
[1763045398960,0.19548431,102310.0,102300.0,0.08756811]
[1763045399174,0.22819431,102310.0,102280.0,0.04535998]
[1763045399379,0.2390847,102310.0,102290.0,0.02999997]
[1763045399591,0.2390847,102310.0,102300.0,0.01999998]
[1763045399793,0.06180519,102310.0,102300.0,0.03101466]
[1763045399996,0.2572895,102310.0,102300.0,0.03101466]
[1763045400204,0.25742901,102310.0,102300.0,0.03101466]
[1763045400419,0.39475901,102310.0,102300.0,0.00287868]
[1763045400634,0.0183447,102310.0,102300.0,0.00287868]
[1763045400842,0.0619447,102310.0,102300.0,0.04629742]
[1763045401049,0.0183447,102310.0,102300.0,0.07629739]
[1763045401252,0.0183447,102310.0,102300.0,0.47185458]
[1763045401471,0.0183447,102310.0,102300.0,0.79485458]
[1763045401860,0.0183447,102310.0,102300.0,0.7748546]
[1763045401861,0.0183474,102310.0,102300.0,0.7748546]
[1763045402112,0.0183474,102310.0,102300.0,0.79485458]
[1763045402334,0.00013951,102310.0,102300.0,0.59935116]
[1763045402561,0.01834914,102310.0,102300.0,0.79485458]
[1763045402772,0.00013951,102310.0,102300.0,0.79485458]
[1763045403199,0.04356,102330.0,102320.0,0.22546517]
[1763045403373,0.06177239,102330.0,102320.0,0.07690169]
[1763045403703,0.01821239,102330.0,102320.0,0.48113024]
[1763045404124,0.19542855,102340.0,102320.0,0.48113024]
[1763045404125,0.35879791,102350.0,102340.0,4.78635906]
[1763045404353,0.26423791,102350.0,102340.0,4.78635906]
[1763045404786,0.23905124,102370.0,102350.0,0.06341872]
[1763045405000,0.04356,102370.0,102360.0,0.04341874]
[1763045405204,0.26418549,102380.0,102360.0,0.08464325]
[1763045405416,0.19536973,102370.0,102360.0,0.10464323]
[1763045405669,0.19536973,102370.0,102360.0,0.09464324]
[1763045405910,0.19536973,102370.0,102360.0,0.06341872]
[1763045406330,0.1955095,102370.0,102360.0,0.06341872]
[1763045406956,0.1955095,102370.0,102360.0,0.06441872]
[1763045407473,0.1955095,102370.0,102360.0,0.04441874]
[1763045407676,0.6480795,102370.0,102360.0,0.001]
[1763045408317,0.19540791,102350.0,102340.0,4.78635906]
[1763045408537,0.60948791,102350.0,102340.0,4.78635906]
[1763045408743,0.68620791,102350.0,102340.0,4.78635906]
[1763045409162,0.64268791,102350.0,102340.0,4.78635906]
[1763045409378,0.23892791,102350.0,102340.0,4.85324904]
[1763045409559,0.23892791,102350.0,102340.0,4.94617726]
[1763045409560,0.28648791,102350.0,102340.0,4.94617726]
[1763045410019,0.28748791,102350.0,102340.0,4.94617726]
[1763045410226,0.09108,102350.0,102340.0,4.94617726]
[1763045410439,0.04352,102350.0,102340.0,5.00306725]
[1763045410645,0.23890951,102360.0,102350.0,0.06341872]
[1763045410848,0.04352,102360.0,102350.0,0.09954422]
[1763045411260,0.23890882,102360.0,102350.0,0.09954422]
[1763045411474,0.23890882,102360.0,102350.0,0.07954424]
[1763045411649,0.04352,102360.0,102350.0,0.09954422]
[1763045411889,0.24090882,102360.0,102350.0,0.09954422]
[1763045412087,0.002,102360.0,102350.0,0.10954421]
[1763045412309,0.003,102360.0,102350.0,0.20229421]
[1763045412730,0.003,102360.0,102350.0,0.30495212]
[1763045412939,0.24838882,102360.0,102350.0,0.10954421]
[1763045413144,0.24838882,102360.0,102350.0,0.09439973]
[1763045414098,0.24838882,102360.0,102350.0,0.08439974]
[1763045414307,0.053,102360.0,102350.0,0.44878764]
[1763045414505,0.053,102360.0,102350.0,0.07439975]
[1763045414715,0.36807882,102360.0,102350.0,0.06439976]
[1763045415072,0.36807882,102360.0,102350.0,0.02098102]
[1763045415248,0.36607882,102360.0,102350.0,0.02098102]
[1763045415454,0.68807882,102360.0,102350.0,0.02098102]
[1763045415883,0.68807882,102360.0,102350.0,0.02398102]
[1763045416057,0.70623655,102360.0,102350.0,0.02398102]
[1763045416470,0.79641159,102360.0,102350.0,0.003]
[1763045416673,0.19540791,102350.0,102340.0,4.78635906]
[1763045416872,3.24744653,102350.0,102340.0,3.5570568]
[1763045417091,3.24744653,102350.0,102340.0,3.09708332]
[1763045417295,3.24744653,102350.0,102340.0,2.94071412]
[1763045417506,3.38726475,102350.0,102340.0,2.60642816]
[1763045417722,3.34384601,102350.0,102340.0,2.57709398]
[1763045417928,3.50464601,102350.0,102340.0,2.5477598]
[1763045418125,3.50464601,102350.0,102340.0,2.51842562]
[1763045418338,3.53723926,102350.0,102340.0,1.89150552]
[1763045418536,3.50964601,102350.0,102340.0,1.69354942]
[1763045418744,3.57752247,102350.0,102340.0,1.61479622]
[1763045418953,3.50464601,102350.0,102340.0,1.58544113]
[1763045419171,3.50964601,102350.0,102340.0,1.55608604]
[1763045419386,3.48964601,102350.0,102340.0,1.52673095]
[1763045419602,3.48964601,102350.0,102340.0,1.49737586]
[1763045419812,3.50964601,102350.0,102340.0,1.46802077]
[1763045420018,3.50964601,102350.0,102340.0,1.43866568]
[1763045420225,2.71502564,102350.0,102340.0,1.41031059]
[1763045420440,2.34858564,102350.0,102340.0,1.41031059]
[1763045420642,2.71502564,102350.0,102340.0,1.41031059]
[1763045420848,2.73502564,102350.0,102340.0,1.41031059]
[1763045421051,2.80442512,102350.0,102340.0,1.40931059]
[1763045421683,2.78335262,102350.0,102340.0,1.40931059]
[1763045422097,2.73991262,102350.0,102340.0,1.40931059]
[1763045422303,0.34608564,102350.0,102340.0,1.40931059]
[1763045422517,0.38952564,102350.0,102340.0,1.40931059]
[1763045423144,0.71252564,102350.0,102340.0,1.40931059]
[1763045423559,0.15067773,102350.0,102340.0,1.40931059]
[1763045423769,0.38952564,102350.0,102340.0,1.40931059]
[1763045423979,0.77101709,102350.0,102340.0,1.40931059]
[1763045424192,0.57060918,102350.0,102340.0,1.40931059]
[1763045424403,0.51211773,102350.0,102340.0,1.40931059]
[1763045424623,0.51611773,102350.0,102340.0,1.40931059]
[1763045425040,0.70753087,102350.0,102340.0,1.40931059]
[1763045425473,0.70453087,102350.0,102340.0,1.40931059]
[1763045425679,0.50912296,102350.0,102340.0,1.40931059]
[1763045425904,0.06160296,102350.0,102340.0,1.56912879]
[1763045426116,0.06360296,102350.0,102340.0,1.56912879]
[1763045426326,0.06660296,102350.0,102340.0,1.45272933]
[1763045426534,0.06660296,102350.0,102340.0,1.4827293]
[1763045426740,0.06360296,102350.0,102340.0,1.6781563]